[Event "Late-Titled-Tuesday-Blitz-March-12-2024"]
[Site "Chess.com"]
[Date "2024.03.12"]
[Round "3"]
[White "ATM622"]
[Black "KSho99"]
[Result "1-0"]
[WhiteElo "2484"]
[BlackElo "2142"]
[TimeControl "180+1"]
[EndTime "14:26:39 PDT"]
[Termination "ATM622 won on time"]

1. d4 {[%clk 0:02:57.8]} 1... e6 {[%clk 0:02:59.9]} 2. c4 {[%clk 0:02:57]} 2...
f5 {[%clk 0:03:00]} 3. Nf3 {[%clk 0:02:55.2]} 3... Nf6 {[%clk 0:02:59.7]} 4. g3
{[%clk 0:02:49]} 4... d5 {[%clk 0:02:59.6]} 5. Bg2 {[%clk 0:02:48.8]} 5... Be7
{[%clk 0:02:59.3]} 6. O-O {[%clk 0:02:49.2]} 6... Ne4 {[%clk 0:02:59.5]} 7. Nbd2
{[%clk 0:02:48.6]} 7... Nc6 {[%clk 0:02:57.7]} 8. b3 {[%clk 0:02:35.4]} 8... Nc3
{[%clk 0:02:43.5]} 9. Qe1 {[%clk 0:02:35.4]} 9... Nb4 {[%clk 0:02:43.2]} 10. Nb1
{[%clk 0:02:29.4]} 10... Ne4 {[%clk 0:02:30]} 11. Na3 {[%clk 0:02:26.6]} 11...
c6 {[%clk 0:02:14.5]} 12. Bd2 {[%clk 0:02:16.2]} 12... a5 {[%clk 0:02:08.2]} 13.
c5 {[%clk 0:02:08.9]} 13... Bf6 {[%clk 0:01:33.9]} 14. Bxb4 {[%clk 0:02:03.5]}
14... axb4 {[%clk 0:01:34.1]} 15. Qxb4 {[%clk 0:02:04]} 15... h5 {[%clk
0:01:34.2]} 16. Ne5 {[%clk 0:01:59.5]} 16... h4 {[%clk 0:01:19.5]} 17. f3 {[%clk
0:01:38]} 17... hxg3 {[%clk 0:01:06.2]} 18. fxe4 {[%clk 0:01:37.5]} 18... dxe4
{[%clk 0:00:53.4]} 19. hxg3 {[%clk 0:01:17.1]} 19... Rxa3 {[%clk 0:00:46.4]} 20.
e3 {[%clk 0:01:09.3]} 20... Ra8 {[%clk 0:00:30.5]} 21. Nc4 {[%clk 0:00:57.2]}
21... Bg5 {[%clk 0:00:24.6]} 22. Nd6+ {[%clk 0:00:52.6]} 22... Kf8 {[%clk
0:00:11.8]} 23. Qd2 {[%clk 0:00:52.4]} 23... Kg8 {[%clk 0:00:10.3]} 24. Qf2
{[%clk 0:00:43.8]} 24... Qf6 {[%clk 0:00:09.7]} 25. Qe2 {[%clk 0:00:37.1]} 25...
Qh6 {[%clk 0:00:09.4]} 26. Kf2 {[%clk 0:00:37.4]} 26... Qg6 {[%clk 0:00:04.3]}
27. Rh1 {[%clk 0:00:37]} 27... Rxh1 {[%clk 0:00:03.7]} 28. Rxh1 {[%clk
0:00:37.9]} 28... Bf6 {[%clk 0:00:01.6]} 29. Bh3 {[%clk 0:00:35.2]} 29... Be7
{[%clk 0:00:01.8]} 30. Nc4 {[%clk 0:00:32.5]} 1-0

[Event "Late-Titled-Tuesday-Blitz-March-12-2024"]
[Site "Chess.com"]
[Date "2024.03.12"]
[Round "3"]
[White "olgerts_indricans"]
[Black "LUISMIGUELOV"]
[Result "1-0"]
[WhiteElo "2409"]
[BlackElo "2123"]
[TimeControl "180+1"]
[EndTime "14:26:39 PDT"]
[Termination "olgerts_indricans won on time"]

1. e4 {[%clk 0:03:00.9]} 1... d6 {[%clk 0:02:55.6]} 2. d4 {[%clk 0:02:56.8]}
2... Nf6 {[%clk 0:02:55.6]} 3. Nc3 {[%clk 0:02:55.8]} 3... g6 {[%clk 0:02:55.5]}
4. Be3 {[%clk 0:02:53.6]} 4... Bg7 {[%clk 0:02:55.6]} 5. Qd2 {[%clk 0:02:53.8]}
5... O-O {[%clk 0:02:52.3]} 6. Bh6 {[%clk 0:02:53.5]} 6... e5 {[%clk 0:02:49.8]}
7. Bxg7 {[%clk 0:02:53.1]} 7... Kxg7 {[%clk 0:02:49.2]} 8. Nf3 {[%clk 0:02:53]}
8... Nc6 {[%clk 0:02:47.7]} 9. O-O-O {[%clk 0:02:52.6]} 9... exd4 {[%clk
0:02:42.5]} 10. Nxd4 {[%clk 0:02:52.2]} 10... Re8 {[%clk 0:02:41.2]} 11. f3
{[%clk 0:02:51.7]} 11... Nxd4 {[%clk 0:02:34.3]} 12. Qxd4 {[%clk 0:02:51.3]}
12... Be6 {[%clk 0:02:33.9]} 13. Bb5 {[%clk 0:02:47.9]} 13... c6 {[%clk
0:02:31]} 14. Bc4 {[%clk 0:02:47.7]} 14... Bxc4 {[%clk 0:02:29.4]} 15. Qxc4
{[%clk 0:02:47.8]} 15... d5 {[%clk 0:02:23.1]} 16. exd5 {[%clk 0:02:47.4]} 16...
cxd5 {[%clk 0:02:22.8]} 17. Nxd5 {[%clk 0:02:46.3]} 17... Nxd5 {[%clk
0:02:22.4]} 18. Rxd5 {[%clk 0:02:44.6]} 18... Qf6 {[%clk 0:02:19]} 19. Rhd1
{[%clk 0:02:40.7]} 19... Rac8 {[%clk 0:02:16.3]} 20. Qd4 {[%clk 0:02:38.2]}
20... Qxd4 {[%clk 0:02:08]} 21. R5xd4 {[%clk 0:02:38.3]} 21... Rc7 {[%clk
0:02:07.3]} 22. c3 {[%clk 0:02:38.2]} 22... Re2 {[%clk 0:02:06.1]} 23. R1d2
{[%clk 0:02:38.6]} 23... Rce7 {[%clk 0:02:05.5]} 24. Rxe2 {[%clk 0:02:38]} 24...
Rxe2 {[%clk 0:02:05.2]} 25. Rd2 {[%clk 0:02:38.9]} 25... Re1+ {[%clk 0:02:05]}
26. Kc2 {[%clk 0:02:39.4]} 26... Ra1 {[%clk 0:02:04.3]} 27. Kb3 {[%clk
0:02:39.1]} 27... Rh1 {[%clk 0:02:01.7]} 28. h3 {[%clk 0:02:38.6]} 28... Rg1
{[%clk 0:02:00.8]} 29. Kc4 {[%clk 0:02:35.8]} 29... Kf6 {[%clk 0:02:00.7]} 30.
Kc5 {[%clk 0:02:34.7]} 30... Ke6 {[%clk 0:02:00]} 31. b4 {[%clk 0:02:32.5]}
31... h5 {[%clk 0:01:57.1]} 32. c4 {[%clk 0:02:32.7]} 32... h4 {[%clk
0:01:54.5]} 33. b5 {[%clk 0:02:32.6]} 33... g5 {[%clk 0:01:52.8]} 34. b6 {[%clk
0:02:23.6]} 34... axb6+ {[%clk 0:01:45.4]} 35. Kxb6 {[%clk 0:02:24]} 35... Rb1+
{[%clk 0:01:45]} 36. Kc7 {[%clk 0:02:23.8]} 36... Rc1 {[%clk 0:01:41.9]} 37.
Kxb7 {[%clk 0:02:20.2]} 37... Rxc4 {[%clk 0:01:41.5]} 38. Kb6 {[%clk 0:02:18.7]}
38... f5 {[%clk 0:01:36]} 39. Kb5 {[%clk 0:02:18.3]} 39... Rc1 {[%clk
0:01:31.1]} 40. a4 {[%clk 0:02:18.4]} 40... g4 {[%clk 0:01:30.9]} 41. fxg4
{[%clk 0:02:16.3]} 41... fxg4 {[%clk 0:01:30.6]} 42. hxg4 {[%clk 0:02:16.9]}
42... Rb1+ {[%clk 0:01:13]} 43. Ka6 {[%clk 0:02:15.6]} 43... Kf6 {[%clk
0:01:08.3]} 44. Rd5 {[%clk 0:02:05.4]} 44... Rb2 {[%clk 0:01:06.5]} 45. Rh5
{[%clk 0:01:57.5]} 45... Rxg2 {[%clk 0:01:03.9]} 46. Rxh4 {[%clk 0:01:57.6]}
46... Kg5 {[%clk 0:01:02.2]} 47. Rh8 {[%clk 0:01:57.7]} 47... Rb2 {[%clk
0:00:58.8]} 48. Rg8+ {[%clk 0:01:57.4]} 48... Kf6 {[%clk 0:00:58]} 49. a5 {[%clk
0:01:55.4]} 49... Ke7 {[%clk 0:00:55.2]} 50. Ka7 {[%clk 0:01:54.6]} 50... Kd7
{[%clk 0:00:54.2]} 51. g5 {[%clk 0:01:53.2]} 51... Kc7 {[%clk 0:00:54]} 52. g6
{[%clk 0:01:52.2]} 52... Rb7+ {[%clk 0:00:53.1]} 53. Ka6 {[%clk 0:01:51.8]}
53... Rb1 {[%clk 0:00:51.4]} 54. g7 {[%clk 0:01:50.2]} 54... Rg1 {[%clk
0:00:35.1]} 55. Ka7 {[%clk 0:01:49.5]} 55... Rg5 {[%clk 0:00:31.9]} 56. a6
{[%clk 0:01:49]} 56... Rg6 {[%clk 0:00:17]} 57. Rb8 {[%clk 0:01:46.7]} 57...
Rxg7 {[%clk 0:00:07.4]} 58. Rb7+ {[%clk 0:01:46.6]} 1-0

[Event "Late-Titled-Tuesday-Blitz-March-12-2024"]
[Site "Chess.com"]
[Date "2024.03.12"]
[Round "3"]
[White "steepedgames"]
[Black "mr_gustavo"]
[Result "1-0"]
[WhiteElo "2547"]
[BlackElo "2712"]
[TimeControl "180+1"]
[EndTime "14:26:40 PDT"]
[Termination "steepedgames won on time"]

1. d4 {[%clk 0:03:00.9]} 1... Nf6 {[%clk 0:01:19.6]} 2. Bg5 {[%clk 0:02:58.5]}
2... g6 {[%clk 0:01:16]} 3. Bxf6 {[%clk 0:02:58.1]} 3... exf6 {[%clk 0:01:16.2]}
4. c4 {[%clk 0:02:59]} 4... Bg7 {[%clk 0:01:17.1]} 5. Nc3 {[%clk 0:02:59.2]}
5... O-O {[%clk 0:01:18]} 6. e3 {[%clk 0:02:59.3]} 6... f5 {[%clk 0:01:14.6]} 7.
h4 {[%clk 0:02:57.3]} 7... h5 {[%clk 0:01:10.7]} 8. g3 {[%clk 0:02:57.2]} 8...
c6 {[%clk 0:01:05.5]} 9. Nge2 {[%clk 0:02:56.5]} 9... d6 {[%clk 0:01:06.4]} 10.
Bg2 {[%clk 0:02:52.2]} 10... Nd7 {[%clk 0:01:07.3]} 11. O-O {[%clk 0:02:50.8]}
11... Nf6 {[%clk 0:01:07]} 12. Qc2 {[%clk 0:02:50.8]} 12... Re8 {[%clk
0:01:07.1]} 13. Nf4 {[%clk 0:02:49.3]} 13... Ng4 {[%clk 0:01:03.3]} 14. Rfe1
{[%clk 0:02:42.1]} 14... Bd7 {[%clk 0:00:51.9]} 15. b4 {[%clk 0:02:37.3]} 15...
Qc7 {[%clk 0:00:43.8]} 16. Qb3 {[%clk 0:02:32.3]} 16... Rad8 {[%clk 0:00:41.9]}
17. a4 {[%clk 0:02:28.8]} 17... Bh6 {[%clk 0:00:36.2]} 18. a5 {[%clk 0:02:28.1]}
18... Bxf4 {[%clk 0:00:24.4]} 19. exf4 {[%clk 0:02:27.1]} 19... Rxe1+ {[%clk
0:00:25.3]} 20. Rxe1 {[%clk 0:02:26.3]} 20... Re8 {[%clk 0:00:26.2]} 21. Rxe8+
{[%clk 0:02:18.4]} 21... Bxe8 {[%clk 0:00:27.1]} 22. Qd1 {[%clk 0:02:05]} 22...
Qe7 {[%clk 0:00:26.1]} 23. Qe2 {[%clk 0:02:05]} 23... Qd8 {[%clk 0:00:22.2]} 24.
Qd2 {[%clk 0:01:56.2]} 24... Bd7 {[%clk 0:00:21.2]} 25. Bf3 {[%clk 0:01:54.7]}
25... Be6 {[%clk 0:00:20.9]} 26. d5 {[%clk 0:01:52.7]} 26... cxd5 {[%clk
0:00:18.2]} 27. Nxd5 {[%clk 0:01:47.4]} 27... Bxd5 {[%clk 0:00:18.3]} 28. Qxd5
{[%clk 0:01:42.6]} 28... Qe7 {[%clk 0:00:15.3]} 29. Kf1 {[%clk 0:01:41.3]} 29...
b6 {[%clk 0:00:08.2]} 30. Bxg4 {[%clk 0:01:38.4]} 30... hxg4 {[%clk 0:00:07.2]}
31. a6 {[%clk 0:01:35.9]} 31... Kg7 {[%clk 0:00:05.9]} 32. b5 {[%clk 0:01:23.5]}
32... Kf6 {[%clk 0:00:04.5]} 33. Qd4+ {[%clk 0:01:22.6]} 33... Ke6 {[%clk
0:00:04.6]} 34. Ke2 {[%clk 0:01:21.7]} 34... Kd7+ {[%clk 0:00:04.1]} 35. Kd2
{[%clk 0:01:22.3]} 35... Qe6 {[%clk 0:00:02.8]} 36. Qd3 {[%clk 0:01:14.1]} 36...
Qf6 {[%clk 0:00:02]} 37. Qd5 {[%clk 0:01:10.2]} 37... Qb2+ {[%clk 0:00:02.2]}
38. Ke3 {[%clk 0:01:10.1]} 38... Qc3+ {[%clk 0:00:01.9]} 39. Ke2 {[%clk
0:01:10.5]} 39... Qc2+ {[%clk 0:00:02.1]} 40. Kf1 {[%clk 0:01:10.5]} 40... Qb1+
{[%clk 0:00:01.4]} 41. Ke2 {[%clk 0:01:09.6]} 41... Qc2+ {[%clk 0:00:01.2]} 42.
Ke1 {[%clk 0:01:09.6]} 42... Qb1+ {[%clk 0:00:01.2]} 43. Kd2 {[%clk 0:01:10.2]}
43... Qb2+ {[%clk 0:00:01.3]} 44. Ke3 {[%clk 0:01:10.1]} 44... Qc3+ {[%clk
0:00:01.6]} 45. Qd3 {[%clk 0:01:10.8]} 45... Qxd3+ {[%clk 0:00:01.6]} 46. Kxd3
{[%clk 0:01:11.7]} 1-0

[Event "Late-Titled-Tuesday-Blitz-March-12-2024"]
[Site "Chess.com"]
[Date "2024.03.12"]
[Round "3"]
[White "NCchamp"]
[Black "Casper"]
[Result "0-1"]
[WhiteElo "2266"]
[BlackElo "2474"]
[TimeControl "180+1"]
[EndTime "14:26:47 PDT"]
[Termination "Casper won by checkmate"]

1. d4 {[%clk 0:03:00.9]} 1... Nf6 {[%clk 0:02:58]} 2. Bg5 {[%clk 0:02:58.5]}
2... b6 {[%clk 0:02:58.1]} 3. Bxf6 {[%clk 0:02:53.9]} 3... exf6 {[%clk 0:02:59]}
4. e4 {[%clk 0:02:53.9]} 4... Bb7 {[%clk 0:02:59.3]} 5. Bd3 {[%clk 0:02:54.3]}
5... c5 {[%clk 0:02:58.2]} 6. c3 {[%clk 0:02:54.1]} 6... d5 {[%clk 0:02:57.3]}
7. Qe2 {[%clk 0:02:47.2]} 7... dxe4 {[%clk 0:02:55.2]} 8. Bxe4 {[%clk 0:02:47]}
8... Bxe4 {[%clk 0:02:56]} 9. Qxe4+ {[%clk 0:02:47.4]} 9... Qe7 {[%clk
0:02:56.8]} 10. Qxe7+ {[%clk 0:02:40.7]} 10... Bxe7 {[%clk 0:02:57.7]} 11. Nf3
{[%clk 0:02:39.2]} 11... Nc6 {[%clk 0:02:56.6]} 12. dxc5 {[%clk 0:02:36.1]}
12... Bxc5 {[%clk 0:02:57.5]} 13. O-O {[%clk 0:02:35.1]} 13... O-O-O {[%clk
0:02:57.6]} 14. Nbd2 {[%clk 0:02:34.4]} 14... g5 {[%clk 0:02:56]} 15. Nb3 {[%clk
0:02:33.8]} 15... g4 {[%clk 0:02:54.2]} 16. Nfd2 {[%clk 0:02:31.5]} 16... Ne5
{[%clk 0:02:47]} 17. Ne4 {[%clk 0:02:29.2]} 17... f5 {[%clk 0:02:39.8]} 18.
Nexc5 {[%clk 0:02:25.8]} 18... bxc5 {[%clk 0:02:40.7]} 19. Nxc5 {[%clk
0:02:23.8]} 19... Rd2 {[%clk 0:02:40.7]} 20. Rab1 {[%clk 0:02:19.8]} 20... Rhd8
{[%clk 0:02:38.7]} 21. Nb3 {[%clk 0:02:19.6]} 21... Rc2 {[%clk 0:02:36.9]} 22.
Nd4 {[%clk 0:02:20.1]} 22... Rd2 {[%clk 0:02:33.5]} 23. Rfd1 {[%clk 0:02:15.1]}
23... Rxd1+ {[%clk 0:02:22.5]} 24. Rxd1 {[%clk 0:02:16]} 24... f4 {[%clk
0:02:16.4]} 25. Re1 {[%clk 0:01:42.3]} 25... Nd3 {[%clk 0:01:58.1]} 26. Re7
{[%clk 0:01:38.4]} 26... Rd7 {[%clk 0:01:47]} 27. Rxd7 {[%clk 0:01:09.8]} 27...
Kxd7 {[%clk 0:01:47.9]} 28. b4 {[%clk 0:01:07.5]} 28... Nc1 {[%clk 0:01:45.7]}
29. a4 {[%clk 0:01:05.2]} 29... Na2 {[%clk 0:01:45.5]} 30. Ne2 {[%clk
0:01:00.1]} 30... f3 {[%clk 0:01:45.7]} 31. gxf3 {[%clk 0:01:00.8]} 31... gxf3
{[%clk 0:01:46.4]} 32. Nd4 {[%clk 0:01:00.3]} 32... Nxc3 {[%clk 0:01:47]} 33.
Nxf3 {[%clk 0:00:57.9]} 33... Nxa4 {[%clk 0:01:46.6]} 34. Ng5 {[%clk 0:00:56.9]}
34... f6 {[%clk 0:01:45.3]} 35. Ne4 {[%clk 0:00:55]} 35... Ke6 {[%clk
0:01:43.2]} 36. Kg2 {[%clk 0:00:47.4]} 36... Ke5 {[%clk 0:01:39.3]} 37. Nd2
{[%clk 0:00:42.8]} 37... Kd4 {[%clk 0:01:26.1]} 38. Kf3 {[%clk 0:00:42.2]} 38...
Kc3 {[%clk 0:01:22.6]} 39. Ne4+ {[%clk 0:00:41.7]} 39... Kxb4 {[%clk 0:01:23.2]}
40. Nxf6 {[%clk 0:00:42.6]} 40... a5 {[%clk 0:01:20.8]} 41. Nxh7 {[%clk
0:00:33.7]} 41... Nc5 {[%clk 0:01:18.9]} 42. Nf6 {[%clk 0:00:31.8]} 42... a4
{[%clk 0:01:17.9]} 43. Nd5+ {[%clk 0:00:31.6]} 43... Kb3 {[%clk 0:01:18.5]} 44.
h4 {[%clk 0:00:13.2]} 44... a3 {[%clk 0:01:18.5]} 45. h5 {[%clk 0:00:13.5]}
45... a2 {[%clk 0:01:19.1]} 46. h6 {[%clk 0:00:11.6]} 46... a1=Q {[%clk
0:01:19.6]} 47. Kg4 {[%clk 0:00:11.5]} 47... Qh8 {[%clk 0:01:19.2]} 48. Kh5
{[%clk 0:00:10.4]} 48... Ne6 {[%clk 0:01:19.5]} 49. Ne3 {[%clk 0:00:09.9]} 49...
Nf4+ {[%clk 0:01:19.2]} 50. Kg5 {[%clk 0:00:09.8]} 50... Nh3+ {[%clk 0:01:18.4]}
51. Kh5 {[%clk 0:00:09.8]} 51... Nxf2 {[%clk 0:01:19.3]} 52. Nf5 {[%clk
0:00:09.3]} 52... Qf6 {[%clk 0:01:15.1]} 53. h7 {[%clk 0:00:06.2]} 53... Qxf5+
{[%clk 0:01:15]} 54. Kh6 {[%clk 0:00:07.1]} 54... Qf6+ {[%clk 0:01:14.4]} 55.
Kh5 {[%clk 0:00:07.2]} 55... Qg7 {[%clk 0:01:15]} 56. Kh4 {[%clk 0:00:07]} 56...
Qg4# {[%clk 0:01:14.7]} 0-1

[Event "Late-Titled-Tuesday-Blitz-March-12-2024"]
[Site "Chess.com"]
[Date "2024.03.12"]
[Round "3"]
[White "willcab71"]
[Black "wild3000"]
[Result "0-1"]
[WhiteElo "2137"]
[BlackElo "2410"]
[TimeControl "180+1"]
[EndTime "14:26:47 PDT"]
[Termination "wild3000 won by resignation"]

1. d4 {[%clk 0:03:00.9]} 1... Nf6 {[%clk 0:02:29.6]} 2. Nf3 {[%clk 0:03:00.5]}
2... d6 {[%clk 0:02:29.9]} 3. e3 {[%clk 0:02:59.3]} 3... g6 {[%clk 0:02:30.2]}
4. b3 {[%clk 0:02:59.6]} 4... Bg7 {[%clk 0:02:31.1]} 5. Bb2 {[%clk 0:03:00.2]}
5... O-O {[%clk 0:02:31.8]} 6. g3 {[%clk 0:03:00.8]} 6... a5 {[%clk 0:02:31.6]}
7. Bg2 {[%clk 0:03:01.5]} 7... a4 {[%clk 0:02:31.9]} 8. a3 {[%clk 0:03:01.6]}
8... axb3 {[%clk 0:02:24.2]} 9. cxb3 {[%clk 0:03:02.5]} 9... Nc6 {[%clk
0:02:22.7]} 10. O-O {[%clk 0:03:02.1]} 10... Bg4 {[%clk 0:02:21]} 11. h3 {[%clk
0:02:57.9]} 11... Bf5 {[%clk 0:02:18.9]} 12. Nc3 {[%clk 0:02:56.7]} 12... Ne4
{[%clk 0:02:18.1]} 13. Nd2 {[%clk 0:02:23.8]} 13... Nxc3 {[%clk 0:02:15.6]} 14.
Bxc3 {[%clk 0:02:24.7]} 14... Qd7 {[%clk 0:02:14.5]} 15. Kh2 {[%clk 0:02:24.3]}
15... d5 {[%clk 0:02:12.5]} 16. b4 {[%clk 0:02:21]} 16... h5 {[%clk 0:02:11.4]}
17. Nb3 {[%clk 0:02:14.2]} 17... b6 {[%clk 0:02:10.8]} 18. Nd2 {[%clk
0:01:56.9]} 18... e5 {[%clk 0:02:04.5]} 19. Nf3 {[%clk 0:00:50.7]} 19... e4
{[%clk 0:01:56.7]} 20. Nd2 {[%clk 0:00:50.4]} 20... Na7 {[%clk 0:01:45.5]} 21.
a4 {[%clk 0:00:42.3]} 21... c5 {[%clk 0:01:45]} 22. bxc5 {[%clk 0:00:37.1]}
22... bxc5 {[%clk 0:01:45.9]} 23. Nb3 {[%clk 0:00:35.5]} 23... c4 {[%clk
0:01:45.3]} 24. Nc5 {[%clk 0:00:35.2]} 24... Qc6 {[%clk 0:01:44.6]} 25. f3
{[%clk 0:00:25.9]} 25... exf3 {[%clk 0:01:41.6]} 26. Bxf3 {[%clk 0:00:26.8]}
26... Be6 {[%clk 0:01:26.1]} 27. e4 {[%clk 0:00:24.7]} 27... dxe4 {[%clk
0:01:18.3]} 28. Bxe4 {[%clk 0:00:25.6]} 28... Bd5 {[%clk 0:01:18.2]} 29. Bc2
{[%clk 0:00:24.1]} 29... Nc8 {[%clk 0:01:07.8]} 30. Qd2 {[%clk 0:00:20.4]} 30...
Nd6 {[%clk 0:01:06]} 31. Qg5 {[%clk 0:00:19.2]} 31... Ne4 {[%clk 0:01:02.2]} 32.
Nxe4 {[%clk 0:00:17.6]} 32... Bxe4 {[%clk 0:01:03.1]} 33. Bxe4 {[%clk
0:00:18.2]} 33... Qxe4 {[%clk 0:01:03.7]} 34. Rae1 {[%clk 0:00:18.2]} 34... Qc2+
{[%clk 0:01:02.7]} 35. Bd2 {[%clk 0:00:17.6]} 35... Rxa4 {[%clk 0:00:59.7]} 36.
Rf2 {[%clk 0:00:13.9]} 36... c3 {[%clk 0:00:56.9]} 37. Be3 {[%clk 0:00:12.7]}
37... Qd3 {[%clk 0:00:57]} 38. Ree2 {[%clk 0:00:12.7]} 38... Bxd4 {[%clk
0:00:52.5]} 39. Bxd4 {[%clk 0:00:13.6]} 39... Rxd4 {[%clk 0:00:50.5]} 40. Re3
{[%clk 0:00:13.7]} 40... Qc4 {[%clk 0:00:49.5]} 41. Rc2 {[%clk 0:00:13.6]} 41...
Rd2+ {[%clk 0:00:49.2]} 42. Rxd2 {[%clk 0:00:14.1]} 42... cxd2 {[%clk
0:00:50.1]} 0-1

[Event "Late-Titled-Tuesday-Blitz-March-12-2024"]
[Site "Chess.com"]
[Date "2024.03.12"]
[Round "3"]
[White "yuriydovzik"]
[Black "TheAlienParty"]
[Result "1-0"]
[WhiteElo "2108"]
[BlackElo "2384"]
[TimeControl "180+1"]
[EndTime "14:26:49 PDT"]
[Termination "yuriydovzik won by resignation"]

1. b3 {[%clk 0:02:57.9]} 1... e5 {[%clk 0:02:57]} 2. Bb2 {[%clk 0:02:56.3]} 2...
Nc6 {[%clk 0:02:57]} 3. e3 {[%clk 0:02:50.4]} 3... d6 {[%clk 0:02:56.6]} 4. d4
{[%clk 0:02:45.8]} 4... g6 {[%clk 0:02:54.5]} 5. dxe5 {[%clk 0:02:40.8]} 5...
dxe5 {[%clk 0:02:53.8]} 6. Qxd8+ {[%clk 0:02:38.3]} 6... Kxd8 {[%clk 0:02:53.6]}
7. Nd2 {[%clk 0:02:27.5]} 7... Be6 {[%clk 0:02:40.4]} 8. O-O-O {[%clk
0:02:23.7]} 8... Kc8 {[%clk 0:02:37.7]} 9. f4 {[%clk 0:02:21.7]} 9... Bg7 {[%clk
0:02:34.4]} 10. Ngf3 {[%clk 0:02:19.6]} 10... Nge7 {[%clk 0:02:26.9]} 11. Bc4
{[%clk 0:02:01.4]} 11... Nd5 {[%clk 0:02:18.7]} 12. Bxd5 {[%clk 0:01:33.7]}
12... Bxd5 {[%clk 0:02:17.8]} 13. fxe5 {[%clk 0:01:28.5]} 13... Re8 {[%clk
0:02:11.9]} 14. e4 {[%clk 0:01:23.7]} 14... Be6 {[%clk 0:02:10]} 15. Ng5 {[%clk
0:01:18.2]} 15... Bxe5 {[%clk 0:02:05.9]} 16. Nxe6 {[%clk 0:01:04.6]} 16...
Bxb2+ {[%clk 0:01:59.8]} 17. Kxb2 {[%clk 0:01:03.1]} 17... Rxe6 {[%clk
0:02:00.7]} 18. Rhf1 {[%clk 0:00:59.3]} 18... Nd8 {[%clk 0:01:54.7]} 19. Rf4
{[%clk 0:00:51.8]} 19... a5 {[%clk 0:01:50.5]} 20. a4 {[%clk 0:00:50.5]} 20...
c6 {[%clk 0:01:41.3]} 21. h4 {[%clk 0:00:49.9]} 21... Kc7 {[%clk 0:01:40.6]} 22.
Nf3 {[%clk 0:00:47.6]} 22... h6 {[%clk 0:01:26]} 23. e5 {[%clk 0:00:42.4]} 23...
b5 {[%clk 0:01:22.6]} 24. axb5 {[%clk 0:00:34.1]} 24... cxb5 {[%clk 0:01:22.1]}
25. Rfd4 {[%clk 0:00:32.5]} 25... a4 {[%clk 0:01:15.7]} 26. Rd7+ {[%clk
0:00:29.4]} 26... Kc6 {[%clk 0:01:06.9]} 27. Rxd8 {[%clk 0:00:28.6]} 27... a3+
{[%clk 0:01:05.8]} 28. Ka2 {[%clk 0:00:27.7]} 28... Ra7 {[%clk 0:01:05.7]} 29.
R8d6+ {[%clk 0:00:25.8]} 29... Rxd6 {[%clk 0:01:03.5]} 30. exd6 {[%clk
0:00:24.8]} 30... f6 {[%clk 0:01:00.7]} 31. d7 {[%clk 0:00:22.8]} 31... Rxd7
{[%clk 0:01:00]} 32. Rxd7 {[%clk 0:00:21.9]} 32... Kxd7 {[%clk 0:01:00]} 33.
Kxa3 {[%clk 0:00:22.1]} 33... Ke6 {[%clk 0:01:00.2]} 34. Kb4 {[%clk 0:00:22]}
34... Kf5 {[%clk 0:01:00.3]} 35. Kxb5 {[%clk 0:00:21.7]} 35... Kg4 {[%clk
0:01:00.5]} 36. c4 {[%clk 0:00:21.7]} 36... Kg3 {[%clk 0:01:00.6]} 37. c5 {[%clk
0:00:21.8]} 37... Kxg2 {[%clk 0:01:00.7]} 38. Nd4 {[%clk 0:00:21.5]} 38... g5
{[%clk 0:01:00.4]} 39. hxg5 {[%clk 0:00:20.7]} 39... fxg5 {[%clk 0:01:00.5]} 40.
c6 {[%clk 0:00:20.2]} 40... g4 {[%clk 0:00:59.9]} 41. Nf5 {[%clk 0:00:19.6]}
41... h5 {[%clk 0:00:59.4]} 42. c7 {[%clk 0:00:19]} 42... g3 {[%clk 0:00:59.2]}
43. c8=Q {[%clk 0:00:18.3]} 43... h4 {[%clk 0:00:59]} 44. Qc2+ {[%clk
0:00:17.3]} 44... Kh3 {[%clk 0:00:58.6]} 45. Nxh4 {[%clk 0:00:15]} 45... Kxh4
{[%clk 0:00:58.4]} 46. Qg2 {[%clk 0:00:15.4]} 46... Kg4 {[%clk 0:00:58.2]} 47.
Kc4 {[%clk 0:00:15.5]} 47... Kf4 {[%clk 0:00:58.1]} 48. Kd3 {[%clk 0:00:16.1]}
1-0